Cogmind - Beta 13 @@@ ROGUE MODE // 2024.07.17 @ 10:56:39 Player: APerTAS Result: Destroyed by as-45044 with Assembled Rifle Performance ------------- Evolutions (0) 0 Regions Visited (2) 400 Robots Destroyed (24) 120 Value Destroyed (530) 530 Prototype IDs (2) 40 Alien Tech Used (0) 0 Bonus (0) 0 TOTAL SCORE: 1090 Bonus ------- None Cogmind --------- Core Integrity 0/250 Matter 252/300 Energy 100/100 System Corruption 0% Temperature Cool (55) Movement Core (450) Ox8 Location -10/Mines Parts ------- > --- POWER (1) -------- (None) > --- PROPULSION (2) --- (None) > --- UTILITY (2) ------ Large Storage Unit Signal Interpreter > --- WEAPON (2) ------- Beam Cannon Grenade Launcher > --- INVENTORY (15) --- Ion Engine Ion Engine Light Ion Engine Light Nuclear Core Compact Wheel Heat Sink High-capacity Matter Pod (72) Visual Processing Unit Sensor Array Power Shielding Hacking Suite Beam Cannon Light Assault Rifle Light Assault Rifle Mining Laser Peak State ------------ > --- POWER ------------ Light Ion Engine > --- PROPULSION ------- Wheel Compact Wheel > --- UTILITY ---------- Large Storage Unit Signal Interpreter > --- WEAPON ----------- Beam Cannon Light Assault Rifle > --- INVENTORY -------- Ion Engine Ion Engine Light Ion Engine Light Nuclear Core Compact Wheel Compact Wheel Heat Sink High-capacity Matter Pod Visual Processing Unit Sensor Array Power Shielding Hacking Suite EM Pulse Gun Beam Cannon Light Assault Rifle [Rating: 9] Favorites ----------- Power Light Ion Engine Engine Light Ion Engine Propulsion Light Treads Treads Light Treads Wheel Compact Wheel Utility Large Storage Unit Device Heat Sink Storage Large Storage Unit Processor Signal Interpreter Weapon Light Assault Rifle Energy Gun Small Laser Energy Cannon Beam Cannon Ballistic Gun Light Assault Rifle Launcher Grenade Launcher Special Weapon Mining Laser Build | -11 -10 -10 ------- Run | Yrd Mat Min Slots Evolved . | . . . Power . | . . . Propulsion . | . . . Utility . | . . . Weapon . | . . . Parts Attached 39 | 6 31 2 Power 8 | 1 7 . Engine 8 | 1 7 . Core . | . . . Reactor . | . . . Propulsion 9 | 2 7 . Treads 4 | 2 2 . Leg . | . . . Wheel 5 | . 5 . Hover . | . . . Flight . | . . . Utility 7 | 1 6 . Device 3 | . 3 . Storage 3 | 1 2 . Processor 1 | . 1 . Hackware . | . . . Protection . | . . . Artifact . | . . . Weapon 15 | 2 11 2 Energy Gun 1 | . 1 . Energy Cannon 2 | . 2 . Ballistic Gun 9 | 2 7 . Ballistic Cannon . | . . . Launcher 2 | . . 2 Special Weapon 1 | . 1 . Impact Weapon . | . . . Slashing Weapon . | . . . Piercing Weapon . | . . . Special Melee Weapon . | . . . Unidentified Prototypes . | . . . Parts Lost 10 | . 7 3 Power 2 | . 1 1 Propulsion 5 | . 3 2 Utility . | . . . Weapon 3 | . 3 . Highest Loss Streak 5 | . 5 3 To Critical Strikes . | . . . Average Slot Usage (%) 95 | . 95 71 Engine 13 | . 14 7 Treads 9 | . 9 . Wheel 17 | . 17 14 Device 6 | . 6 . Storage 14 | . 14 14 Processor 6 | . 6 14 Energy Cannon 6 | . 6 14 Ballistic Gun 18 | . 18 . Naked Turns . | . . . Heaviest Build 29 | 11 29 29 Greatest Support 40 | 40 40 26 Greatest Overweight (x) 3 | . 3 1 Average Overweight (x) . | . . . Largest Inventory Capacity 15 | 8 15 15 Average Capacity 13 | 7 13 15 Most Carried 15 | 6 15 15 Average Carried 10 | 2 10 15 Final Capacity 15 | 8 15 15 Final Carried 15 | 4 15 15 Class Distribution -------------------- 70% | Mutant 29% | Scavenger-Mutant Dominant Class ---------------- Mutant | -10/Materials Mutant | -10/Mines Resources | -11 -10 -10 ----------- Run | Yrd Mat Min Matter Collected 771 | 260 511 . Remotely . | . . . Salvage Created 657 | . 599 58 Parts 56 | . 53 3 Haulers Intercepted . | . . . Recyclers Shooed 1 | . 1 . Parts Field Recycled . | . . . Retrieved Matter . | . . . Parts Self-Destructed . | . . . Prevented . | . . . Kills | -11 -10 -10 ------- Run | Yrd Mat Min Combat Hostiles Destroyed 20 | . 16 4 Guns 11 | . 11 . Cannons 5 | . 5 . AOE 4 | . . 4 Classes Destroyed 6 | . 5 1 Worker 3 | . 1 2 Operator 2 | . 2 . Watcher 3 | . 3 . Swarmer 5 | . 5 . Grunt 11 | . 11 . Assembled 4 | . . 4 Best Kill Streak 6 | . 4 6 Combat Bots Only 4 | . 4 4 Max Kills in Single Turn 3 | . 1 3 Gunslinging . | . . . Exploded 2 | . . 2 Melee . | . . . Uniques/NPCs Destroyed . | . . . Combat | -11 -10 -10 -------- Run | Yrd Mat Min Hostile Shots Fired 147 | . 127 20 Missed 44 | . 38 6 Damage Taken 1251 | . 948 303 Core 251 | . 139 112 Absorbed by Shields . | . . . Core Remaining (%) 100 | 100 . . Volleys Fired 94 | . 92 2 Largest 2 | . 2 2 Hottest 160 | . 160 90 Shots Fired 166 | . 162 4 Gun 123 | . 123 . Cannon 39 | . 37 2 Launcher 2 | . . 2 Special 2 | . 2 . Kinetic 123 | . 123 . Thermal 41 | . 39 2 Explosive 2 | . . 2 Electromagnetic . | . . . Robot Hit Streak 9 | . 9 5 Robot Miss Streak 5 | . 5 . Penetration Max . | . . . Secondary Targets 4 | . 4 . Max Gunslinging Chain 1 | . 1 . Shots Hit Robots 95 | . 91 4 Core Hits 52 | . 38 14 Critical Kills . | . . . Critical Parts Destroyed . | . . . Critical Strikes . | . . . Melee Attacks . | . . . Impact . | . . . Slashing . | . . . Piercing . | . . . Sneak Attacks . | . . . Combat Hostiles . | . . . Follow-up Attacks . | . . . Damage Inflicted 1502 | . 1006 496 Guns 694 | . 694 . Cannons 347 | . 312 35 Explosions 461 | . . 461 Melee . | . . . Ramming . | . . . Kinetic 694 | . 694 . Thermal 347 | . 312 35 Explosive 461 | . . 461 Electromagnetic . | . . . Impact . | . . . Slashing . | . . . Piercing . | . . . Highest Corruption . | . . . Average Corruption . | . . . Corruption Purged . | . . . Corruption Blocked . | . . . Overload Shots . | . . . Overflow Damage 17 | . 15 2 Projectiles 15 | . 15 . Explosions 2 | . . 2 Melee . | . . . Knockbacks . | . . . Impact . | . . . Kinetic . | . . . Secondary . | . . . Self-Inflicted Damage 78 | . . 78 Shots 2 | . . 2 Rammed . | . . . Targets Rammed . | . . . Kicked . | . . . Crushed . | . . . Highest Temperature 220 | . 220 55 Average Temperature 63 | . 64 29 Received Heat Transfer 431 | . 411 20 Siege Activations . | . . . Robots Corrupted . | . . . Combat Hostiles . | . . . Parts Fried . | . . . Impact Corruptions . | . . . Robots Melted . | . . . Combat Hostiles . | . . . Parts Melted . | . . . Heat Transferred 740 | . 666 74 Parts Sabotaged . | . . . Parts Stolen . | . . . Parts Stripped . | . . . Power Chain Reactions . | . . . Alert | -11 -10 -10 ------- Run | Yrd Mat Min Peak Influence 234 | . 234 105 Initial 77 | . . 77 Average 112 | . 117 81 Maximum Alert Level 1 | . 1 . Low Security (%) 92 | 100 92 100 Level 1 7 | . 7 . Level 2 . | . . . Level 3 . | . . . Level 4 . | . . . Level 5 . | . . . High Security . | . . . Max Security . | . . . Squads Dispatched 7 | . 7 . Investigation 4 | . 4 . Extermination . | . . . Reinforcement 3 | . 3 . Assault . | . . . Garrison . | . . . Intercept . | . . . Searches Triggered . | . . . Construction Impeded . | . . . Haulers Reinforced . | . . . Active Scanning Responses . | . . . Cargo Convoy Interrupts . | . . . Stealth | -11 -10 -10 --------- Run | Yrd Mat Min Distress Signals . | . . . Communications Jammed . | . . . Distress Signals . | . . . Times Spotted 48 | . 35 13 Peak Tracking Total 13 | . 3 13 Tactical Retreats 1 | . 1 . Traps | -11 -10 -10 ------- Run | Yrd Mat Min Traps Triggered 3 | . 3 . Indirectly . | . . . Trap Hack Attempts . | . . . Triggered . | . . . Disarmed . | . . . Reprogrammed . | . . . Reused . | . . . Traps Extracted . | . . . Installed . | . . . Triggered . | . . . Machines | -11 -10 -10 ---------- Run | Yrd Mat Min Machines Disabled 1 | . . 1 Max in Single Turn 1 | . . 1 Machines Repaired . | . . . Machines Dismantled . | . . . Machines Sabotaged . | . . . Overloaded Fab Kills . | . . . Hacking | -11 -10 -10 --------- Run | Yrd Mat Min Machines Accessed 6 | . 6 . Terminals 4 | . 4 . Fabricators . | . . . Repair Stations . | . . . Recycling Units 2 | . 2 . Scanalyzers . | . . . Garrison Access . | . . . Total Hacks 23 | . 23 . Successful 12 | . 12 . Failed 11 | . 11 . Catastrophic 2 | . 2 . Database Lockouts . | . . . Manual 21 | . 21 . Terminals 16 | . 16 . Fabricators . | . . . Repair Stations . | . . . Recycling Units 7 | . 7 . Scanalyzers . | . . . Garrison Access . | . . . Terminal Hacks 5 | . 5 . Robot Analysis 1 | . 1 . Prototype ID Bank 1 | . 1 . Branch Access Points 1 | . 1 . Recall Investigation 1 | . 1 . Zone Layout 1 | . 1 . Fabricator Hacks . | . . . Repair Station Hacks . | . . . Recycling Unit Hacks 2 | . 2 . Retrieve Components 2 | . 2 . Scanalyzer . | . . . Garrison Access Hacks . | . . . Unauthorized Hacks 5 | . 5 . Terminals 1 | . 1 . Assimilate 1 | . 1 . Fabricators . | . . . Repair Stations . | . . . Recycling Units 4 | . 4 . Reject 2 | . 2 . Tunnel 2 | . 2 . Scanalyzers . | . . . Garrison Access . | . . . Data Cores Recovered . | . . . Used . | . . . Hacking Detections 5 | . 5 . Full Trace Events 4 | . 4 . Feedback Events . | . . . Feedback Blocked . | . . . Robot Schematics Acquired . | . . . Robots Built . | . . . Authchips . | . . . Time . | . . . Total Robot Build Rating . | . . . Part Schematics Acquired . | . . . Parts Built . | . . . Authchips . | . . . Time . | . . . Total Part Build Rating . | . . . Parts Repaired . | . . . Time . | . . . Parts Recycled . | . . . Recycled Matter . | . . . Retrieved Matter . | . . . Retrieved Components 17 | . 17 . Parts Scanalyzed . | . . . Part Schematics Acquired . | . . . Parts Damaged . | . . . Bothacking | -11 -10 -10 ------------ Run | Yrd Mat Min Used RIF Installer . | . . . Robots Hacked . | . . . Non-combat . | . . . Combat . | . . . Robot Hacks Applied . | . . . Relay Couplers Released . | . . . Fabnet Peak Effective % . | . . . Robots Rewired . | . . . Allies Hacked . | . . . Hacks Repelled . | . . . Allies | -11 -10 -10 -------- Run | Yrd Mat Min Total Allies . | . . . Largest Group . | . . . Highest-Rated Group . | . . . Highest-Rated Ally . | . . . Total Orders . | . . . Ally Attacks . | . . . Total Damage . | . . . Kills . | . . . Allies Corrupted . | . . . Allies Melted . | . . . Intel | -11 -10 -10 ------- Run | Yrd Mat Min Robot Analysis Total 1 | . 1 . Derelict Logs Recovered . | . . . Drone Launches . | . . . Drone Recoveries . | . . . Exploration | -11 -10 -10 ------------- Run | Yrd Mat Min Turns Passed 2059 | 78 1964 17 Spaces Moved 1429 | 42 1379 8 Core 3 | 2 1 . Treads 380 | 40 340 . Legs . | . . . Wheels 1046 | . 1038 8 Hover . | . . . Flight . | . . . Fastest Speed 50 | 50 90 90 Average Speed 119 | 154 118 93 Slowest Speed 200 | 160 200 105 Overloaded Moves . | . . . Propulsion Burnouts . | . . . Robots Hopped . | . . . Cave-ins Triggered . | . . . Exploration Rate (%) 35 | 4 99 3 Regions Visited 2 Branch Regions 1 Pre-discovered Areas 2 | . 2 . Known Exits Taken 1 | . 1 . Unknown Exits Taken 1 | 1 . . Scrap Searched . | . . . Spaces Dug 1 | . 1 . Terrain Destroyed 16 | . 2 14 Melee . | . . . Projectile 2 | . 2 . AOE 14 | . . 14 Terrain Rammed . | . . . Walls Destroyed . | . . . Machines Disabled . | . . . Actions | -11 -10 -10 --------- Run | Yrd Mat Min Total 1634 | 53 1568 13 Wait 27 | . 27 . Move 1427 | 41 1378 8 Hop . | . . . Pick Up 30 | 6 24 . Fast Attach 11 | 4 6 1 Attach 10 | 2 8 . Detach . | . . . Swap 18 | . 17 1 Drop 17 | . 16 1 Fire 94 | . 92 2 Melee . | . . . Ram . | . . . Kick . | . . . Crush . | . . . Escape Stasis . | . . . Rewire . | . . . Trap . | . . . Miscellaneous . | . . . Route ------- -11/Scrapyard -10/Materials (discovered 5 exits: *Mat x3 / *Min / *Sub) -10/Mines History --------- Turn | Location | Event 32 | -11/Scrapyard | Discovered new exit (range 15) 79 | -11/Scrapyard | Entered Materials 313 | -10/Materials | Build established: Mutant 530 | -10/Materials | Discovered new exit (range 4) 799 | -10/Materials | Lost 5 parts (1p2n2w) 845 | -10/Materials | Discovered new exit (range 10) 1087 | -10/Materials | Discovered new exit (range 8) 1094 | -10/Materials | Identified exit to Subcaves 1455 | -10/Materials | Identified exit to Materials 1541 | -10/Materials | Identified exit to Mines 1595 | -10/Materials | Build established: Scavenger-Mutant 1644 | -10/Materials | Discovered exit to Materials (range 16) 1733 | -10/Materials | Core integrity fell below 50% 2043 | -10/Materials | Entered Mines 2044 | -10/Mines | Assembled infested the area 2059 | -10/Mines | Core integrity fell below 20% 2060 | -10/Mines | Destroyed by as-45044 with Assembled Rifle Last Messages --------------- 02044_ K-01 Serf collects debris. 02047_ Dropped Grenade Launcher. 02051_ K-01 Serf collects debris. 02053_ Acquired Grenade Launcher. 02054_ K-01 Serf cleans the Seismic Survey Station. 02054_ as-46926 destroyed. 02054_ Seismic Survey Station disabled. 02054_ as-33720 destroyed. 02054_ K-01 Serf destroyed. 02055_ Lgt. Ion Engine destroyed. 02057_ K-01 Serf collects debris. 02057_ Wheel destroyed. 02057_ as-07002 destroyed. 02057_ Com. Wheel destroyed. 02057_ Destroyed Com. Wheel. 02057_ Destroyed Asb. Hover Unit. 02057_ as-06724 destroyed. 02057_ K-01 Serf destroyed. 02058_ as-30463 destroyed. Map ----- +----------------------------------------------------+ | | | | | | | | | | | | | | | | | | | | | | | | | | | | | | | | | | | | | | | | | | | ??????????????????????######?????????????????????? | | ????????????????????### ?????????????????????? | | ????????????????????# ###???????????????????? | | ????????????????????## a ! #???????????????????? | | ??????????????????### aaa@%= #???????????????????? | | ???????????????# aaa a = #???????????????????? | | ??????????????# ## % #???????????????????? | | ?????????????# ?????# " #???????????????????? | | ????????????????????## % #???????????????????? | | ?????????????????????#########???????????????????? | | ?????????????????????????????????????????????????? | | ?????????????????????????????????????????????????? | | ?????????????????????????????????????????????????? | | ?????????????????????????????????????????????????? | | ?????????????????????????????????????????????????? | | ?????????????????????????????????????????????????? | | ?????????????????????????????????????????????????? | | ?????????????????????????????????????????????????? | | ?????????????????????????????????????????????????? | | ?????????????????????????????????????????????????? | | ?????????????????????????????????????????????????? | | ?????????????????????????????????????????????????? | | ?????????????????????????????????????????????????? | | ?????????????????????????????????????????????????? | | ?????????????????????????????????????????????????? | | ?????????????????????????????????????????????????? | | ?????????????????????????????????????????????????? | | ?????????????????????????????????????????????????? | | ?????????????????????????????????????????????????? | +----------------------------------------------------+ Best States ------------- Heat Dissipation 35 Energy Generation 10 Energy Capacity 250 Matter Stores 300 Matter Capacity 300 Sight Range 16 Terrain Scan Density 10 Evasion (%) 42 Recoil Reduction 2 Item Schematics ----------------- None Robot Schematics ------------------ None Fabricated ------------ Nothing Alien Tech Used ----------------- None Achievements -------------- None Challenges ------------ None Game ------ Seed OmegaIonicSuperbattery Manual? 0 Play Time 00:21:10 Cumulative 19.6 hours Start 2024.07.17 @ 10:34:48 End 2024.07.17 @ 10:56:39 Sessions 1 Manual Loads 0 Difficulty Rogue Special Mode None Game No. 62 Rogue 62 Adventurer 0 Explorer 0 Win Type - Total 0 Types 0/0/0/0/0/0/0/0/0 Lore% 26 Gallery% 25 Achievement% 23 Wizard Run 0 Options --------- Layout 1 ASCII 0 Keyboard 0 Movement Arrows Keybinds 0 Fullscreen 1 Font 28/Dina Map View 50x43 Zoom Use 0% Tactical HUD 1 Map Filters NONE Filters NONE Steam X RUN: 161a6b68-9d9e-4793-a1b3-ec2d8eedec69